bitfinex/quotes_SOLUSD_20250728
["timestamp","ask_amount","ask_price","bid_price","bid_amount"]
[1753734303136,0.67,184.52,184.49,38.46]
[1753734304342,0.67,184.51,184.49,38.46]
[1753734304840,5.00866219,184.52,184.49,38.46]
[1753734305042,5.67866219,184.52,184.49,38.46]
[1753734305547,5.00866219,184.51,184.49,38.46]
[1753734305715,6.10079983,184.5,184.42,21.79334616]
[1753734305910,6.10079983,184.5,184.43,38.44]
[1753734305911,5.00866219,184.47,184.43,38.44]
[1753734306341,0.42213764,184.51,184.45,5.00866219]
[1753734306539,5.00866219,184.5,184.46,38.44]
[1753734306838,11.09877675,184.5,184.46,38.44]
[1753734307535,5.67866219,184.49,184.46,38.44]
[1753734307728,5.00866219,184.47,184.46,38.44]
[1753734308130,5.67866219,184.47,184.46,38.44]
[1753734309157,11.09959784,184.47,184.46,38.44]
[1753734309524,5.67866219,184.47,184.46,38.44]
[1753734309723,11.09959784,184.47,184.46,38.44]
[1753734310043,11.09959784,184.47,184.44,38.46]
[1753734310230,5.00866219,184.45,184.44,38.46]
[1753734310436,5.67866219,184.45,184.38,0.06]
[1753734310614,5.00866219,184.42,184.38,0.06]
[1753734310936,5.00866219,184.42,184.39,38.46]
[1753734311135,5.42235626,184.43,184.39,38.46]
[1753734311136,5.00866219,184.43,184.39,38.46]
[1753734311319,5.00866219,184.43,184.39,39.15]
[1753734311516,10.43085156,184.43,184.39,39.15]
[1753734311852,10.43085156,184.43,184.39,38.46]
[1753734311853,6.10079983,184.42,184.39,38.46]
[1753734312924,5.00866219,184.43,184.39,38.46]
[1753734313135,0.42213764,184.44,184.4,0.69]
[1753734314236,5.84396329,184.44,184.4,0.69]
[1753734314448,5.00866219,184.43,184.39,38.46]
[1753734314935,5.00866219,184.41,184.39,38.46]
[1753734315135,5.67866219,184.41,184.39,38.46]
[1753734315529,5.43079983,184.42,184.39,38.46]
[1753734316026,5.67866219,184.43,184.39,38.46]
[1753734316228,0.42213764,184.42,184.39,38.46]
[1753734316939,5.67866219,184.44,184.4,0.69]
[1753734317140,10.85268835,184.44,184.4,0.69]
[1753734317544,5.43079983,184.44,184.4,0.69]
[1753734317747,0.42213764,184.46,184.42,5.00866219]
[1753734317952,0.42213764,184.46,184.43,38.46]
[1753734318117,154.67866219,184.48,184.43,43.46866219]
[1753734318321,149.0,184.48,184.44,0.69]
[1753734318780,160.09937884,184.48,184.44,0.69]
[1753734319049,0.67,184.47,184.43,43.46866219]
[1753734319552,154.42071665,184.48,184.43,44.15866219]
[1753734319844,155.09071665,184.48,184.43,44.15866219]
[1753734321450,149.67,184.48,184.44,5.00866219]
[1753734321640,149.67,184.48,184.44,5.69866219]
[1753734321843,149.67,184.48,184.45,5.00866219]
[1753734322035,149.67,184.48,184.46,38.46]
[1753734322434,149.0,184.48,184.46,38.46]
[1753734322746,149.67,184.48,184.46,38.46]
[1753734323948,5.67866219,184.47,184.46,38.46]
[1753734324142,6.10079983,184.47,184.46,38.46]
[1753734325037,11.52173548,184.47,184.46,38.46]
[1753734325742,11.52173548,184.47,184.42,5.00866219]
[1753734325948,0.67,184.46,184.44,38.46]
[1753734327546,6.09127746,184.46,184.44,38.44]
[1753734328732,0.67,184.46,184.44,38.44]
[1753734330047,6.09128565,184.46,184.44,38.44]
[1753734330249,0.42213764,184.45,184.44,38.44]
[1753734330466,6.10079983,184.45,184.41,38.44]
[1753734330640,5.00866219,184.43,184.41,38.44]
[1753734330841,0.67,184.42,184.41,38.44]
[1753734331344,5.00866219,184.43,184.41,38.44]
[1753734331539,5.00866219,184.43,184.38,5.06866219]
[1753734331540,0.42213764,184.43,184.38,5.06866219]
[1753734331734,0.42213764,184.43,184.39,0.66]
[1753734331953,10.85295234,184.43,184.4,38.44]
[1753734332136,11.53295234,184.43,184.4,38.44]
[1753734332956,5.00866219,184.41,184.4,38.44]
[1753734333330,5.68866219,184.41,184.4,38.44]
[1753734333959,11.1113616,184.41,184.4,38.44]
[1753734337032,0.42213764,184.45,184.4,44.10866219]
[1753734337240,5.43079983,184.46,184.41,5.66866219]
[1753734337438,5.43079983,184.46,184.42,0.66]
[1753734337643,5.43079983,184.46,184.43,0.66]
[1753734337841,5.43079983,184.46,184.41,0.66]
[1753734338351,5.43079983,184.46,184.41,5.66866219]
[1753734338556,5.43079983,184.47,184.42,5.66866219]
[1753734338758,5.43079983,184.47,184.43,0.66]
[1753734339072,5.00866219,184.51,184.45,5.00866219]
[1753734339239,10.85031641,184.52,184.47,5.00866219]
[1753734339441,4.00526636,184.51,184.48,38.44]
[1753734339742,5.00866219,184.51,184.48,38.44]
[1753734339934,5.00866219,184.49,184.48,38.44]
[1753734340133,5.68866219,184.49,184.48,38.44]
[1753734340365,5.68866219,184.49,184.45,38.44]
[1753734340569,5.00866219,184.47,184.45,38.44]
[1753734340776,5.68866219,184.47,184.45,38.44]
[1753734342985,6.11079983,184.46,184.45,38.44]
[1753734343151,6.11079983,184.46,184.39,5.72866219]
[1753734343344,5.00866219,184.43,184.42,38.44]
[1753734343769,5.43079983,184.43,184.42,38.44]
[1753734344374,5.00866219,184.44,184.42,38.44]
[1753734344584,5.43079983,184.44,184.42,38.44]
[1753734345861,11.53267926,184.44,184.42,38.44]
[1753734346480,5.68866219,184.43,184.42,38.44]
[1753734347489,5.00866219,184.43,184.42,38.44]
[1753734349084,159.42980683,184.47,184.42,39.1]
[1753734349400,10.1227934,184.46,184.42,39.1]
[1753734349699,6.11079983,184.46,184.42,39.1]
[1753734350184,4.01312535,184.45,184.42,39.1]
[1753734350492,5.43079983,184.44,184.42,38.44]
[1753734350674,6.11079983,184.44,184.42,38.44]
[1753734351482,5.43079983,184.45,184.42,38.44]
[1753734352575,10.85238146,184.45,184.42,38.44]
[1753734353289,11.53238146,184.45,184.42,38.44]
[1753734353476,0.42213764,184.45,184.42,38.44]
[1753734353682,5.43079983,184.46,184.43,0.66]
[1753734353982,9.02231888,184.45,184.42,38.44]
[1753734354278,5.00866219,184.45,184.42,39.1]
[1753734354586,5.00866219,184.46,184.43,0.66]
[1753734354889,4.01387638,184.45,184.43,0.66]
[1753734355397,5.43079983,184.46,184.43,0.66]
[1753734355698,4.01392893,184.45,184.43,0.66]
[1753734355857,149.0,184.47,184.44,0.66]
[1753734356057,149.0,184.47,184.45,0.66]
[1753734356995,149.0,184.47,184.42,43.92235777]
[1753734356996,6.11079983,184.46,184.43,38.44]
[1753734357198,0.42213764,184.46,184.43,38.44]
[1753734357372,149.0,184.47,184.45,5.00866219]
[1753734357579,149.0,184.47,184.46,5.00866219]
[1753734357894,149.0,184.47,184.46,5.66866219]
[1753734359580,5.42008525,184.5,184.46,5.66866219]
[1753734359781,4.0142485,184.49,184.47,38.44]
[1753734360870,4.0142485,184.49,184.48,0.66]
[1753734361063,149.0,184.52,184.48,5.66866219]
[1753734361385,149.0,184.52,184.49,5.00866219]
[1753734361588,149.0,184.52,184.49,38.42]
[1753734361589,6.09079983,184.51,184.49,38.42]
[1753734361765,0.66,184.5,184.49,38.42]
[1753734362081,149.0,184.52,184.49,44.08866219]
[1753734362284,0.03,184.53,184.51,5.00866219]
[1753734362669,0.03,184.53,184.51,5.66866219]
[1753734362884,4.04340381,184.53,184.51,5.66866219]
[1753734363081,0.03,184.53,184.51,5.00866219]
[1753734363295,0.69,184.53,184.5,5.00866219]
[1753734363480,0.03,184.53,184.5,5.00866219]
[1753734364889,0.03,184.53,184.49,39.08]
[1753734365092,0.03,184.53,184.5,5.00866219]
[1753734365293,1.11213764,184.53,184.5,5.00866219]
[1753734365595,0.69,184.53,184.5,5.00866219]
[1753734366392,5.00866219,184.51,184.45,5.00866219]
[1753734366577,5.00866219,184.49,184.46,38.42]
[1753734366770,6.09079983,184.48,184.46,38.42]
[1753734366969,5.66866219,184.48,184.46,38.42]
[1753734367171,5.66866219,184.48,184.42,5.06866219]
[1753734367172,6.09079983,184.47,184.42,5.06866219]
[1753734367390,5.66866219,184.46,184.43,38.42]
[1753734367571,1.08213764,184.45,184.43,38.42]
[1753734368197,5.43079983,184.46,184.43,38.42]
[1753734368695,1.08213764,184.46,184.43,38.42]
[1753734368995,11.51210818,184.46,184.43,38.42]
[1753734369386,6.09079983,184.46,184.43,38.42]
[1753734369996,11.51208161,184.46,184.43,38.42]
[1753734370894,5.00866219,184.44,184.43,38.42]
[1753734371076,6.09079983,184.44,184.43,38.42]
[1753734371483,6.09079983,184.44,184.42,0.06]
[1753734371783,5.66866219,184.43,184.42,0.06]
[1753734372414,5.95298533,184.43,184.42,0.06]
[1753734372618,154.95298533,184.43,184.42,0.06]
[1753734372913,160.3750967,184.43,184.42,0.06]
[1753734375104,149.0,184.43,184.42,0.06]
[1753734375302,160.09077356,184.43,184.42,0.06]
[1753734375516,160.3750967,184.43,184.42,0.06]
[1753734376525,161.9626967,184.43,184.42,0.06]
[1753734381992,165.96250934,184.43,184.42,0.06]
[1753734383518,161.9626967,184.43,184.42,0.06]
[1753734383818,165.96061935,184.43,184.42,0.06]
[1753734386014,163.71301935,184.43,184.42,0.06]
[1753734386289,14.71301935,184.43,184.42,0.06]
[1753734386492,15.79515699,184.43,184.42,0.06]
[1753734387605,15.13515699,184.43,184.42,0.06]
[1753734387842,15.79515699,184.43,184.42,0.06]
[1753734388199,11.79723434,184.43,184.42,0.06]
[1753734388908,15.79382179,184.43,184.42,0.06]
[1753734389121,11.79723434,184.43,184.42,0.06]
[1753734390105,67.00191831,184.43,184.42,0.06]
[1753734390514,70.99714401,184.43,184.42,0.06]
[1753734390706,26.0,184.4,184.39,0.06]
[1753734391020,43.06900711,184.36,184.35,0.06]
[1753734391224,92.34397704,184.36,184.35,0.06]
[1753734391409,97.01505169,184.36,184.35,0.06]
[1753734392224,97.01271121,184.36,184.34,0.06]
[1753734392426,52.80200835,184.33,184.32,0.06]
[1753734392723,91.92846913,184.33,184.32,0.06]
[1753734392900,49.17980694,184.33,184.32,0.06]
[1753734393100,93.02485983,184.33,184.32,0.06]
[1753734394701,97.40388157,184.33,184.32,0.06]
[1753734394907,80.6191976,184.33,184.32,0.06]
[1753734395111,10.85585272,184.33,184.32,0.06]
[1753734395505,37.99080017,184.33,184.32,0.06]
[1753734396206,44.54750017,184.33,184.32,1e-08]
[1753734396520,0.28432314,184.32,184.28,0.06]
[1753734396718,5.29298533,184.29,184.28,0.06]
[1753734396929,44.81512297,184.29,184.28,0.06]
[1753734397230,50.24135336,184.29,184.28,0.06]
[1753734397398,53.02464352,184.29,184.28,0.06]
[1753734397599,95.80932749,184.29,184.28,0.06]
[1753734398213,22.0776693,184.28,184.24,0.06]
[1753734398518,5.29298533,184.25,184.24,0.06]
[1753734398829,43.71298533,184.25,184.24,0.06]
[1753734399025,44.39298533,184.25,184.24,0.06]
[1753734399201,49.82039374,184.25,184.24,0.06]
[1753734399718,49.14039374,184.25,184.24,0.06]
[1753734399915,10.72039374,184.25,184.24,0.06]
[1753734400118,11.82253138,184.25,184.24,0.06]
[1753734400729,0.28432314,184.22,184.16,0.72]
[1753734400924,5.00866219,184.17,184.16,0.72]
[1753734401429,5.00866219,184.17,184.13,0.72]
[1753734401731,5.00866219,184.15,184.14,0.72]
[1753734402114,5.00866219,184.15,184.12,1.5757]
[1753734402314,0.42213764,184.16,184.13,0.72]
[1753734402516,0.42213764,184.17,184.13,0.72]
[1753734402719,5.43079983,184.17,184.13,0.72]
[1753734403029,5.43079983,184.17,184.14,0.72]
[1753734403544,5.43079983,184.17,184.15,0.72]
[1753734403917,5.43079983,184.17,184.12,5.00866219]
[1753734404116,0.42213764,184.18,184.14,5.00866219]
[1753734404408,0.42213764,184.18,184.15,0.72]
[1753734404914,5.43079983,184.18,184.15,0.72]
[1753734405112,5.00866219,184.17,184.13,0.72]
[1753734405318,5.43079983,184.16,184.14,0.72]
[1753734405519,0.42213764,184.16,184.12,5.00866219]
[1753734405732,0.42213764,184.17,184.15,0.72]
[1753734405938,0.42213764,184.17,184.16,0.72]
[1753734406843,6.617,184.3,184.16,7.30436219]
[1753734407022,7.89544343,184.28,184.21,5.00866219]
[1753734407216,5.00866219,184.26,184.22,0.58]
[1753734407634,5.00866219,184.26,184.23,0.58]
[1753734407941,31.42628018,184.29,184.25,5.00866219]
[1753734407942,2.72897655,184.29,184.25,5.00866219]
[1753734408145,3.94783168,184.28,184.25,5.58866219]
[1753734408316,3.94783168,184.27,184.25,5.58866219]
[1753734408621,9.63649387,184.26,184.18,0.58]
[1753734408810,5.00866219,184.22,184.18,0.58]
[1753734409017,5.00866219,184.21,184.16,2.1557]
[1753734409220,0.28432314,184.24,184.16,2.1557]
[1753734409221,5.00866219,184.23,184.18,5.00866219]
[1753734409435,5.00866219,184.23,184.19,0.58]
[1753734409639,5.68866219,184.23,184.17,5.00866219]
[1753734409840,5.00866219,184.22,184.17,5.00866219]
[1753734410337,5.00866219,184.22,184.1,0.14216157]
[1753734410338,5.00866219,184.18,184.12,5.00866219]
[1753734410538,5.00866219,184.17,184.12,5.00866219]
[1753734410714,0.28432314,184.21,184.13,5.58866219]
[1753734410715,5.00866219,184.18,184.13,5.58866219]
[1753734410920,5.00866219,184.19,184.14,0.58]
[1753734411120,0.96432314,184.21,184.15,5.58866219]
[1753734411335,10.43757403,184.2,184.15,5.58866219]
[1753734411629,5.00866219,184.17,184.12,5.58866219]
[1753734412138,5.00866219,184.18,184.13,5.58866219]
[1753734412937,5.68866219,184.18,184.13,5.58866219]
[1753734413639,5.00866219,184.17,184.12,5.00866219]
[1753734413944,5.00866219,184.17,184.1,38.8]
[1753734413945,5.00866219,184.14,184.1,38.8]
[1753734414113,0.68,184.16,184.07,6.66326219]
[1753734414114,5.00866219,184.12,184.07,6.66326219]
[1753734414318,5.00866219,184.1,184.05,0.58]
[1753734414622,5.00866219,184.07,184.02,6.66326219]
[1753734414826,5.00866219,184.06,184.01,5.43425991]
[1753734415032,187.78,184.11,184.01,0.58]
[1753734415230,187.78,184.11,184.03,5.00866219]
[1753734415231,5.00866219,184.08,184.03,5.00866219]
[1753734415627,5.00866219,184.09,184.04,5.00866219]
[1753734416036,5.68866219,184.09,184.04,5.00866219]
[1753734416224,5.00866219,184.07,184.01,6.01445942]
[1753734416554,5.00866219,184.07,184.02,5.00866219]
[1753734416850,8.19604397,184.07,184.02,14.21011709]
[1753734417020,188.08432314,184.11,184.04,8.19604397]
[1753734417221,8.19604397,184.05,183.99,8.19604397]
[1753734417438,8.19604397,184.04,183.99,8.19604397]
[1753734417645,8.19604397,184.04,183.99,8.77604397]
[1753734417848,8.19604397,184.04,184.0,0.58]
[1753734418266,8.19604397,184.05,184.0,0.58]
[1753734418441,8.19604397,184.05,184.02,0.06]
[1753734418855,8.19604397,184.03,184.02,0.06]
[1753734419140,8.87604397,184.05,184.02,0.06]
[1753734419666,8.19604397,184.03,184.02,0.06]
[1753734419847,16.37478457,184.03,184.02,0.06]
[1753734420149,8.57441746,184.03,184.02,0.06]
[1753734420350,12.82343007,184.03,184.02,0.06]
[1753734420734,7.89201335,184.03,184.02,0.06]
[1753734420931,7.89201434,184.03,184.02,8.25604397]
[1753734421129,3.9473861,184.03,184.02,8.25604397]
[1753734421337,3.9473861,184.03,184.02,0.06]
[1753734423062,3.9473861,184.03,184.02,8.25604397]
[1753734423254,3.9473861,184.03,184.02,0.06]
[1753734424442,3.9473861,184.03,184.02,8.25604397]
[1753734426062,3.9473861,184.03,184.02,0.06]
[1753734426063,4.5973861,184.03,184.02,0.06]
[1753734427950,3.9473861,184.03,184.02,8.83604397]
[1753734428152,2.76231887,184.08,184.02,35.37946316]
[1753734428465,0.65,184.09,184.07,8.19604397]
[1753734428667,14.65394397,184.12,184.02,66.50341919]
[1753734428668,8.53253272,184.08,184.02,66.50341919]
[1753734428859,7.88253272,184.07,184.02,39.96]
[1753734429033,4.59126723,184.06,184.02,39.38]
[1753734429236,13.62820089,184.09,184.02,8.25604397]
[1753734429237,4.59126723,184.05,184.02,8.25604397]
[1753734429570,3.94126723,184.04,184.02,0.06]
[1753734429753,3.94126723,184.03,184.02,0.06]
[1753734430254,16.72930548,184.03,184.02,0.06]
[1753734430650,12.7873112,184.03,184.02,0.06]
[1753734430840,12.7873112,184.03,183.92,0.58]
[1753734430841,16.78468397,184.02,183.92,0.58]
[1753734431162,7.88310269,184.01,183.91,8.19604397]
[1753734431395,8.19604397,183.97,183.91,8.19604397]
[1753734431542,8.19604397,183.97,183.9,0.64]
[1753734431543,0.65,183.97,183.93,8.19604397]
[1753734431932,0.65,184.0,183.96,8.19604397]
[1753734432142,3.94186416,183.99,183.94,1.18365553]
[1753734432334,0.65,184.05,183.98,8.19604397]
[1753734432534,3.94453541,184.04,184.0,8.19604397]
[1753734432749,8.19604397,184.01,183.96,8.19604397]
[1753734433034,4.59374675,184.0,183.94,8.19604397]
[1753734433356,12.13979072,183.99,183.94,8.19604397]
[1753734433536,8.19604397,183.97,183.92,8.19604397]
[1753734433737,3.94374675,183.96,183.92,8.19604397]
[1753734433951,0.65,183.96,183.89,45.47794258]
[1753734434134,3.9476517,183.95,183.92,8.19604397]
[1753734434439,4.5976517,183.94,183.9,8.19604397]
[1753734434641,3.9476517,183.93,183.89,39.4]
[1753734434831,8.19604397,183.93,183.89,39.4]
[1753734435051,3.9469555,183.92,183.89,47.59604397]
[1753734435264,3.9469555,183.91,183.9,8.19604397]
[1753734435454,3.9469555,183.91,183.89,47.59604397]
[1753734435655,8.19604397,183.94,183.89,48.23604397]
[1753734435968,3.94830482,183.93,183.9,8.19604397]
[1753734436171,3.94830482,183.92,183.9,8.83604397]
[1753734436376,3.94830482,183.91,183.9,8.83604397]
[1753734436772,3.94879976,183.91,183.9,14.27378187]
[1753734437474,3.94879976,183.91,183.9,8.83604397]
[1753734437647,8.19604397,183.95,183.89,39.4]
[1753734437848,7.89795198,183.94,183.9,8.19604397]
[1753734438052,3.94907572,183.93,183.9,8.19604397]
[1753734438259,8.19604397,183.95,183.9,8.19604397]
[1753734438458,12.79433333,183.94,183.89,53.03407573]
[1753734438767,12.79433333,183.94,183.9,8.19604397]
[1753734438768,0.65,183.94,183.9,8.19604397]
[1753734438971,3.94873543,183.93,183.89,44.8380127]
[1753734439178,16.78468397,184.02,183.92,18.01628794]
[1753734439356,2.1711,184.04,183.96,26.0]
[1753734439357,7.89953336,184.01,183.96,26.0]
[1753734439557,3.94951936,184.0,183.97,40.42]
[1753734439785,0.65,184.06,183.98,17.96822131]
[1753734440091,7.89980914,184.05,183.99,5.43507799]
[1753734440249,26.0,184.01,183.98,0.54353734]
[1753734440446,8.55096508,184.0,183.9,0.64]
[1753734440646,3.94990968,183.99,183.96,8.19604397]
[1753734440887,7.90081126,183.98,183.97,8.19604397]
[1753734442158,7.90081126,183.98,183.97,13.63171282]
[1753734442847,3.94990968,183.98,183.97,14.8152797]
[1753734443048,3.94990968,183.98,183.97,31.59996367]
[1753734443279,0.65,184.05,183.98,16.78468397]
[1753734443445,8.19604397,184.03,183.99,39.74]
[1753734443647,8.56226712,184.02,183.99,39.74]
[1753734443847,8.56226712,184.01,183.99,39.74]
[1753734444047,8.56226712,184.0,183.99,39.74]
[1753734444456,7.91226712,184.0,183.99,39.74]
[1753734444655,3.95608271,184.0,183.99,39.74]
[1753734445187,4.60608271,184.0,183.98,39.74]
[1753734445365,0.65,184.02,183.98,39.74]
[1753734445567,8.56812822,184.01,183.96,8.19604397]
[1753734445761,8.56812822,184.0,183.97,39.74]
[1753734446071,4.6090636,183.99,183.97,39.74]
[1753734446289,12.80510757,183.98,183.88,0.64]
[1753734446577,8.19604397,183.93,183.88,39.78]
[1753734446785,8.84604397,183.93,183.88,47.97604397]
[1753734447158,0.65,183.93,183.89,8.19604397]
[1753734447371,0.65,183.93,183.89,13.63400746]
[1753734447760,8.19604397,183.94,183.89,13.63400746]
[1753734447954,8.84604397,183.94,183.89,8.19604397]
[1753734448188,0.65,183.93,183.89,8.19604397]
[1753734448369,0.65,183.93,183.88,45.21805196]
[1753734448370,0.65,183.92,183.88,47.97604397]
[1753734448559,8.19604397,183.93,183.88,53.41434317]
[1753734448763,0.65,183.93,183.89,8.19604397]
[1753734449457,0.65,183.93,183.89,13.63395441]
[1753734449657,8.84604397,183.93,183.89,5.43791044]
[1753734449860,8.19604397,183.93,183.89,5.43791044]
[1753734450381,16.78468397,183.99,183.88,53.41433535]
[1753734450582,0.65,183.92,183.88,53.41433535]
[1753734450893,0.65,183.92,183.86,26.64]
[1753734450894,0.65,183.91,183.86,71.15876805]
[1753734451091,0.65,183.91,183.87,8.19604397]
[1753734451273,0.66,183.9,183.87,8.19604397]
[1753734451585,8.85604397,183.94,183.89,8.19604397]
[1753734451796,0.66,183.93,183.89,8.19604397]
[1753734451972,8.19604397,183.94,183.89,8.19604397]
[1753734452174,0.66,183.92,183.88,8.19604397]
[1753734453480,8.19604397,183.93,183.88,8.19604397]
[1753734453689,0.66,183.91,183.87,13.63458857]
[1753734454183,0.66,183.91,183.88,8.19604397]
[1753734454694,8.85604397,183.93,183.88,8.19604397]
[1753734454876,6.2085,183.95,183.88,8.19604397]
[1753734455193,8.19604397,183.93,183.89,8.19604397]
[1753734455399,8.19604397,183.94,183.89,14.27382957]
[1753734455588,8.85604397,183.94,183.89,13.63382957]
[1753734455787,26.0,183.96,183.89,13.63382957]
[1753734455788,8.19604397,183.95,183.9,47.85604397]
[1753734456096,8.19604397,183.96,183.91,8.83604397]
[1753734456280,4.63305225,183.95,183.91,8.19604397]
[1753734456597,8.19604397,183.99,183.94,8.19604397]
[1753734456902,3.97335377,183.98,183.94,47.83604397]
[1753734457384,3.97727638,183.97,183.94,47.83604397]
[1753734457584,8.85604397,183.99,183.94,47.83604397]
[1753734457790,3.97810526,183.98,183.96,8.19604397]
[1753734457975,0.66,183.99,183.96,8.19604397]
[1753734458186,3.98313663,183.98,183.95,8.19604397]
[1753734458391,5.43426246,184.02,183.94,45.07647719]
[1753734458392,0.66,184.03,183.97,8.19604397]
[1753734458579,149.0,184.07,183.97,8.19604397]
[1753734458580,3.98381595,184.02,184.01,8.19604397]
[1753734458771,3.98381595,184.02,184.0,8.19604397]
[1753734458972,8.85604397,184.05,184.0,8.19604397]
[1753734459282,8.19604397,184.03,183.97,26.0]
[1753734459481,8.19604397,184.01,183.94,0.54365553]
[1753734459702,0.66,184.02,183.93,8.19604397]
[1753734459703,8.19604397,183.98,183.93,8.19604397]
[1753734459903,0.66,183.97,183.94,39.58]
[1753734460116,8.85604397,183.97,183.94,39.58]
[1753734460281,0.66,183.96,183.94,39.58]
[1753734460482,0.66,183.95,183.94,39.58]
[1753734462206,4.65076957,183.95,183.94,39.58]
[1753734462898,3.99076957,183.95,183.94,39.58]
[1753734463099,8.19604397,183.98,183.94,39.58]
[1753734463396,12.84754879,183.97,183.94,39.58]
[1753734463606,4.65150482,183.96,183.94,39.58]
[1753734463782,13.63174135,183.97,183.94,39.58]
[1753734464108,3.99177238,183.96,183.94,39.58]
[1753734464316,3.99177238,183.96,183.94,47.77604397]
[1753734464606,0.66,183.99,183.95,8.19604397]
[1753734464810,3.99299667,183.98,183.96,8.19604397]
[1753734465014,149.0,184.02,183.97,47.71604397]
[1753734465227,3.99400485,184.01,183.99,8.19604397]
[1753734465432,5.43415621,184.03,183.95,0.54362598]
[1753734465433,8.85604397,184.0,183.95,0.54362598]
[1753734465597,12.18977519,183.99,183.95,39.52]
[1753734465913,12.84977519,183.98,183.95,39.52]
[1753734466231,13.63200831,183.96,183.95,39.52]
[1753734466392,5.43575863,183.97,183.95,39.52]
[1753734466712,13.63148585,183.98,183.95,39.52]
[1753734466907,4.65374445,183.97,183.95,39.52]
[1753734467110,0.66,183.97,183.95,39.52]
[1753734467408,8.85604397,183.97,183.95,39.52]
[1753734467593,0.66,183.97,183.95,39.52]
[1753734467787,0.66,183.97,183.88,7.17263293]
[1753734467788,8.19604397,183.96,183.88,7.17263293]
[1753734467987,8.19604397,183.94,183.89,8.19604397]
[1753734468192,5.43616443,183.96,183.9,8.19604397]
[1753734468398,12.19021011,183.95,183.9,8.19604397]
[1753734468589,8.85604397,183.95,183.89,40.1]
[1753734468794,12.85015583,183.94,183.89,47.65604397]
[1753734469117,0.66,183.93,183.89,47.65604397]
[1753734469415,3.99446531,183.92,183.85,0.06]
[1753734469593,6.6258,183.94,183.85,0.06]
[1753734469594,8.19604397,183.89,183.85,0.06]
[1753734469902,3.99446531,183.88,183.85,0.06]
[1753734470101,3.99446531,183.87,183.85,0.06]
[1753734470513,12.85050928,183.86,183.85,0.06]
[1753734471415,13.13483242,183.86,183.85,0.06]
[1753734472320,0.28432314,183.85,183.83,0.1]
[1753734472523,86.76813242,183.84,183.83,1e-08]
[1753734472700,17.06900711,183.83,183.81,1e-08]
[1753734472894,161.47483242,183.82,183.81,1e-08]
[1753734473098,13.13483242,183.82,183.81,1e-08]
[1753734473622,52.55483242,183.82,183.81,1e-08]
[1753734474300,74.77962084,183.82,183.81,1e-08]
[1753734474509,17.06900711,183.81,183.8,840.95238598]
[1753734474700,38.11556036,183.81,183.8,813.67635081]
[1753734474900,38.11556036,183.81,183.8,786.3202867]
[1753734475099,38.11556036,183.81,183.8,758.79361966]
[1753734475496,77.51556036,183.81,183.8,728.21467461]
[1753734475701,77.51556036,183.81,183.8,666.32045134]
[1753734476010,48.11556036,183.81,183.8,479.0292803]
[1753734476319,97.55914254,183.81,183.8,451.56043933]
[1753734476522,101.13121626,183.81,183.8,327.87103035]
[1753734476723,109.32726023,183.81,183.8,203.89433028]
[1753734476899,26.0,183.72,183.62,0.67]
[1753734477099,8.19604397,183.65,183.62,0.67]
[1753734477523,8.19604397,183.65,183.63,0.67]
[1753734477701,8.19604397,183.7,183.59,14.52264397]
[1753734477903,43.34695548,183.69,183.64,0.67]
[1753734478097,43.34695548,183.69,183.64,0.17]
[1753734478098,3.9615423,183.68,183.64,0.17]
[1753734478315,3.9615423,183.68,183.59,6.3266]
[1753734478316,8.19604397,183.65,183.59,6.3266]
[1753734478530,8.19604397,183.62,183.59,45.7066]
[1753734478736,8.19604397,183.63,183.59,45.7066]
[1753734479299,8.19604397,183.63,183.59,45.6866]
[1753734479529,8.19604397,183.64,183.59,53.88264397]
[1753734479713,8.19604397,183.67,183.62,8.19604397]
[1753734480030,13.64030182,183.68,183.63,8.19604397]
[1753734480241,0.80216157,183.74,183.65,8.19604397]
[1753734480444,8.19604397,183.72,183.67,8.19604397]
[1753734480628,8.19604397,183.72,183.66,0.67]